[Event "Titled Tuesday Blitz September 13 Late 2022"]
[White "Pap, Gyula"]
[Black "Sarana, Alexey"]
[WhiteFideId "725323"]
[BlackFideId "24133795"]
[WhiteElo "2519"]
[BlackElo "2689"]
[Result "0-1"]
[Round "05"]
[TimeControl "180+1"]
[Date "2022.09.13"]
[WhiteClock "0:00:03"]
[BlackClock "0:00:11"]

1. d4 {[%clk 0:03:00]}  Nf6 {[%clk 0:02:54]} 2. c4 {[%clk 0:03:00]}  e6 {[%clk 0:02:54]} 3. Nc3 {[%clk 0:03:00]}  Bb4 {[%clk 0:02:55]} 4. Qb3 {[%clk 0:03:01]}  c5 {[%clk 0:02:52]} 5. dxc5 {[%clk 0:03:02]}  Na6 {[%clk 0:02:52]} 6. a3 {[%clk 0:03:01]}  Bxc3+ {[%clk 0:02:40]} 7. Qxc3 {[%clk 0:03:01]}  Nxc5 {[%clk 0:02:41]} 8. b4 {[%clk 0:03:00]}  Nce4 {[%clk 0:02:41]} 9. Qb2 {[%clk 0:03:00]}  d5 {[%clk 0:02:39]} 10. c5 {[%clk 0:02:59]}  d4 {[%clk 0:02:19]} 11. Nf3 {[%clk 0:02:58]}  Ng4 {[%clk 0:02:14]} 12. Qxd4 {[%clk 0:02:42]}  Qxd4 {[%clk 0:02:05]} 13. Nxd4 {[%clk 0:02:43]}  Ngxf2 {[%clk 0:02:05]} 14. Rg1 {[%clk 0:02:43]}  Ng4 {[%clk 0:02:02]} 15. h3 {[%clk 0:02:09]}  Ngf6 {[%clk 0:01:59]} 16. g4 {[%clk 0:02:09]}  Bd7 {[%clk 0:01:51]} 17. Bg2 {[%clk 0:02:05]}  h6 {[%clk 0:01:51]} 18. Bb2 {[%clk 0:01:48]}  a5 {[%clk 0:01:47]} 19. Rf1 {[%clk 0:01:30]}  axb4 {[%clk 0:01:29]} 20. axb4 {[%clk 0:01:31]}  Rxa1+ {[%clk 0:01:29]} 21. Bxa1 {[%clk 0:01:32]}  Ke7 {[%clk 0:01:27]} 22. Kd1 {[%clk 0:01:11]}  Ra8 {[%clk 0:01:23]} 23. Kc2 {[%clk 0:01:11]}  Ra3 {[%clk 0:01:11]} 24. Bb2 {[%clk 0:00:58]}  Ba4+ {[%clk 0:01:07]} 25. Kc1 {[%clk 0:00:51]}  Rg3 {[%clk 0:01:07]} 26. Bf3 {[%clk 0:00:43]}  Rxh3 {[%clk 0:01:03]} 27. b5 {[%clk 0:00:42]}  Nxc5 {[%clk 0:00:44]} 28. b6 {[%clk 0:00:43]}  Nfd7 {[%clk 0:00:38]} 29. Ba3 {[%clk 0:00:41]}  Ke8 {[%clk 0:00:37]} 30. Kb2 {[%clk 0:00:36]}  e5 {[%clk 0:00:34]} 31. Nf5 {[%clk 0:00:30]}  e4 {[%clk 0:00:34]} 32. Nd6+ {[%clk 0:00:31]}  Kd8 {[%clk 0:00:29]} 33. Nxe4 {[%clk 0:00:19]}  Nxe4 {[%clk 0:00:24]} 34. Bxe4 {[%clk 0:00:20]}  f6 {[%clk 0:00:24]} 35. Bxb7 {[%clk 0:00:16]}  Nxb6 {[%clk 0:00:23]} 36. Bf8 {[%clk 0:00:12]}  Nc4+ {[%clk 0:00:21]} 37. Ka2 {[%clk 0:00:07]}  Bb3+ {[%clk 0:00:18]} 38. Ka1 {[%clk 0:00:07]}  Bc2 {[%clk 0:00:13]} 39. Bd5 {[%clk 0:00:05]}  Ne3 {[%clk 0:00:12]} 40. Rc1 {[%clk 0:00:02]}  Ke8 {[%clk 0:00:10]} 41. Bc5 {[%clk 0:00:01]}  Nxd5 {[%clk 0:00:10]} 42. Rxc2 {[%clk 0:00:02]}  Rc3 {[%clk 0:00:09]} 43. Rxc3 {[%clk 0:00:01]}  Nxc3 {[%clk 0:00:10]} 44. e3 {[%clk 0:00:01]}  Ne4 {[%clk 0:00:10]} 45. Bd4 {[%clk 0:00:02]}  Nf2 {[%clk 0:00:10]} 46. g5 {[%clk 0:00:03]}  hxg5 {[%clk 0:00:11]} 0-1


[Site "https://www.chess.com"]

[Event "Titled Tuesday Blitz September 13 Late 2022"]
[White "Putnam, Liam"]
[Black "Bazeev, German"]
[WhiteFideId "30938279"]
[BlackFideId "24119350"]
[WhiteElo "2031"]
[BlackElo "2493"]
[Result "1-0"]
[Round "05"]
[TimeControl "180+1"]
[Date "2022.09.13"]
[WhiteClock "0:00:53"]
[BlackClock "0:01:06"]

1. e4 {[%clk 0:03:00]}  c5 {[%clk 0:02:57]} 2. b3 {[%clk 0:02:48]}  Nf6 {[%clk 0:02:56]} 3. e5 {[%clk 0:02:48]}  Nd5 {[%clk 0:02:56]} 4. Bb2 {[%clk 0:02:49]}  Nc6 {[%clk 0:02:56]} 5. Nf3 {[%clk 0:02:49]}  g6 {[%clk 0:02:55]} 6. Bc4 {[%clk 0:02:33]}  Nb6 {[%clk 0:02:55]} 7. e6 {[%clk 0:02:29]}  f6 {[%clk 0:02:52]} 8. exd7+ {[%clk 0:02:13]}  Bxd7 {[%clk 0:02:51]} 9. Qe2 {[%clk 0:02:13]}  Nxc4 {[%clk 0:02:47]} 10. Bxf6 {[%clk 0:02:09]}  Nd6 {[%clk 0:02:00]} 11. Bxh8 {[%clk 0:02:09]}  Nb4 {[%clk 0:01:54]} 12. d3 {[%clk 0:01:53]}  Qc7 {[%clk 0:01:39]} 13. O-O {[%clk 0:01:51]}  O-O-O {[%clk 0:01:40]} 14. Be5 {[%clk 0:01:51]}  Bc6 {[%clk 0:01:29]} 15. Nc3 {[%clk 0:01:32]}  Qd7 {[%clk 0:01:26]} 16. a3 {[%clk 0:01:24]}  Nd5 {[%clk 0:01:25]} 17. Rad1 {[%clk 0:01:20]}  Bh6 {[%clk 0:01:24]} 18. Rfe1 {[%clk 0:01:19]}  Rf8 {[%clk 0:01:17]} 19. Ne4 {[%clk 0:01:14]}  b6 {[%clk 0:01:17]} 20. c4 {[%clk 0:01:13]}  Nf4 {[%clk 0:01:16]} 21. Bxf4 {[%clk 0:01:11]}  Rxf4 {[%clk 0:01:17]} 22. Ne5 {[%clk 0:01:11]}  Qc7 {[%clk 0:01:09]} 23. Nxc6 {[%clk 0:01:07]}  Qxc6 {[%clk 0:01:10]} 24. Nxd6+ {[%clk 0:01:08]}  Qxd6 {[%clk 0:01:08]} 25. Qxe7 {[%clk 0:01:07]}  Bf8 {[%clk 0:01:07]} 26. Qxd6 {[%clk 0:00:55]}  Bxd6 {[%clk 0:01:08]} 27. g3 {[%clk 0:00:56]}  Rf7 {[%clk 0:01:07]} 28. d4 {[%clk 0:00:52]}  cxd4 {[%clk 0:01:07]} 29. b4 {[%clk 0:00:53]}  a5 {[%clk 0:01:06]} 30. Rxd4 {[%clk 0:00:53]} 1-0


[Site "https://www.chess.com"]

[Event "Titled Tuesday Blitz September 13 Late 2022"]
[White "Sargsyan, Anna M."]
[Black "Ibrahimli, Murad"]
[WhiteFideId "13308130"]
[BlackFideId "13410229"]
[WhiteElo "2271"]
[BlackElo "2109"]
[Result "1-0"]
[Round "05"]
[TimeControl "180+1"]
[Date "2022.09.13"]
[WhiteClock "0:01:12"]
[BlackClock "0:00:08"]

1. d4 {[%clk 0:02:57]}  Nf6 {[%clk 0:03:00]} 2. c4 {[%clk 0:02:57]}  e6 {[%clk 0:03:00]} 3. Nf3 {[%clk 0:02:57]}  b6 {[%clk 0:02:58]} 4. g3 {[%clk 0:02:57]}  Bb7 {[%clk 0:02:59]} 5. Bg2 {[%clk 0:02:57]}  Be7 {[%clk 0:02:59]} 6. Nc3 {[%clk 0:02:56]}  Ne4 {[%clk 0:02:59]} 7. Nxe4 {[%clk 0:02:44]}  Bxe4 {[%clk 0:03:00]} 8. O-O {[%clk 0:02:44]}  O-O {[%clk 0:02:59]} 9. Qd2 {[%clk 0:02:45]}  d6 {[%clk 0:02:52]} 10. Qe3 {[%clk 0:02:45]}  Bb7 {[%clk 0:02:47]} 11. Qd3 {[%clk 0:02:45]}  Nd7 {[%clk 0:02:15]} 12. e4 {[%clk 0:02:43]}  Bf6 {[%clk 0:02:16]} 13. h4 {[%clk 0:02:27]}  h6 {[%clk 0:02:02]} 14. Re1 {[%clk 0:02:23]}  Rb8 {[%clk 0:01:35]} 15. Be3 {[%clk 0:02:15]}  a6 {[%clk 0:01:31]} 16. Nh2 {[%clk 0:02:14]}  c5 {[%clk 0:01:30]} 17. Ng4 {[%clk 0:02:13]}  Bxd4 {[%clk 0:00:59]} 18. Bxd4 {[%clk 0:02:13]}  cxd4 {[%clk 0:01:00]} 19. Qxd4 {[%clk 0:02:14]}  h5 {[%clk 0:01:01]} 20. Ne3 {[%clk 0:02:12]}  Nc5 {[%clk 0:01:00]} 21. Rad1 {[%clk 0:02:11]}  b5 {[%clk 0:00:54]} 22. cxb5 {[%clk 0:02:01]}  axb5 {[%clk 0:00:54]} 23. e5 {[%clk 0:01:56]}  Bxg2 {[%clk 0:00:53]} 24. Nxg2 {[%clk 0:01:55]}  Qb6 {[%clk 0:00:44]} 25. exd6 {[%clk 0:01:55]}  Rfd8 {[%clk 0:00:43]} 26. Nf4 {[%clk 0:01:52]}  g6 {[%clk 0:00:36]} 27. Nxh5 {[%clk 0:01:36]}  gxh5 {[%clk 0:00:35]} 28. Re5 {[%clk 0:01:37]}  f6 {[%clk 0:00:11]} 29. Rxc5 {[%clk 0:01:37]}  Kf7 {[%clk 0:00:10]} 30. b4 {[%clk 0:01:33]}  Rbc8 {[%clk 0:00:10]} 31. Qd3 {[%clk 0:01:13]}  Rxc5 {[%clk 0:00:09]} 32. Qh7+ {[%clk 0:01:12]}  Kf8 {[%clk 0:00:08]} 33. bxc5 {[%clk 0:01:12]} 1-0


[Site "https://www.chess.com"]

[Event "Titled Tuesday Blitz September 13 Late 2022"]
[White "Tari, Aryan"]
[Black "Cruz, Jonathan"]
[WhiteFideId "1510045"]
[BlackFideId "3802124"]
[WhiteElo "2612"]
[BlackElo "2406"]
[Result "1-0"]
[Round "05"]
[TimeControl "180+1"]
[Date "2022.09.13"]
[WhiteClock "0:00:06"]
[BlackClock "0:00:02"]

1. Nf3 {[%clk 0:03:00]}  Nf6 {[%clk 0:02:56]} 2. c4 {[%clk 0:03:00]}  g6 {[%clk 0:02:43]} 3. Nc3 {[%clk 0:03:00]}  Bg7 {[%clk 0:02:41]} 4. e4 {[%clk 0:02:59]}  O-O {[%clk 0:02:41]} 5. d4 {[%clk 0:03:00]}  c6 {[%clk 0:02:41]} 6. Bd3 {[%clk 0:02:52]}  d5 {[%clk 0:02:37]} 7. cxd5 {[%clk 0:02:50]}  cxd5 {[%clk 0:02:37]} 8. e5 {[%clk 0:02:51]}  Ne8 {[%clk 0:02:38]} 9. h3 {[%clk 0:02:50]}  Nc6 {[%clk 0:02:38]} 10. O-O {[%clk 0:02:50]}  Nc7 {[%clk 0:02:38]} 11. Be3 {[%clk 0:02:48]}  f6 {[%clk 0:02:32]} 12. exf6 {[%clk 0:02:43]}  Bxf6 {[%clk 0:02:33]} 13. Re1 {[%clk 0:02:29]}  Qd6 {[%clk 0:02:07]} 14. Qd2 {[%clk 0:02:28]}  Bg7 {[%clk 0:02:05]} 15. Qd1 {[%clk 0:02:02]}  Bf5 {[%clk 0:02:00]} 16. Bf1 {[%clk 0:01:59]}  Rae8 {[%clk 0:01:48]} 17. a3 {[%clk 0:01:57]}  Kh8 {[%clk 0:01:43]} 18. Rc1 {[%clk 0:01:44]}  Ne6 {[%clk 0:01:19]} 19. g4 {[%clk 0:01:05]}  Be4 {[%clk 0:01:13]} 20. Nxe4 {[%clk 0:01:05]}  dxe4 {[%clk 0:01:14]} 21. d5 {[%clk 0:01:02]}  exf3 {[%clk 0:00:41]} 22. dxc6 {[%clk 0:00:57]}  Bxb2 {[%clk 0:00:32]} 23. Qxd6 {[%clk 0:00:45]}  exd6 {[%clk 0:00:32]} 24. Rb1 {[%clk 0:00:46]}  Bc3 {[%clk 0:00:25]} 25. Rec1 {[%clk 0:00:45]}  Bd4 {[%clk 0:00:24]} 26. Bxd4+ {[%clk 0:00:39]}  Nxd4 {[%clk 0:00:24]} 27. cxb7 {[%clk 0:00:40]}  Ne2+ {[%clk 0:00:23]} 28. Bxe2 {[%clk 0:00:40]}  fxe2 {[%clk 0:00:24]} 29. Re1 {[%clk 0:00:37]}  d5 {[%clk 0:00:20]} 30. Rb2 {[%clk 0:00:34]}  Rb8 {[%clk 0:00:11]} 31. Rexe2 {[%clk 0:00:31]}  Rf7 {[%clk 0:00:12]} 32. Red2 {[%clk 0:00:29]}  Rfxb7 {[%clk 0:00:11]} 33. Rxb7 {[%clk 0:00:29]}  Rxb7 {[%clk 0:00:12]} 34. Rxd5 {[%clk 0:00:30]}  Rb3 {[%clk 0:00:10]} 35. Ra5 {[%clk 0:00:26]}  Rxh3 {[%clk 0:00:09]} 36. Rxa7 {[%clk 0:00:26]}  h5 {[%clk 0:00:06]} 37. gxh5 {[%clk 0:00:15]}  gxh5 {[%clk 0:00:07]} 38. Kg2 {[%clk 0:00:15]}  Rb3 {[%clk 0:00:07]} 39. a4 {[%clk 0:00:14]}  h4 {[%clk 0:00:06]} 40. a5 {[%clk 0:00:14]}  Ra3 {[%clk 0:00:05]} 41. a6 {[%clk 0:00:14]}  h3+ {[%clk 0:00:05]} 42. Kh2 {[%clk 0:00:14]}  Kg8 {[%clk 0:00:05]} 43. f4 {[%clk 0:00:14]}  Kf8 {[%clk 0:00:03]} 44. f5 {[%clk 0:00:08]}  Kg8 {[%clk 0:00:03]} 45. Kg1 {[%clk 0:00:08]}  Kf8 {[%clk 0:00:03]} 46. Kh1 {[%clk 0:00:08]}  Ra2 {[%clk 0:00:02]} 47. Kg1 {[%clk 0:00:07]}  h2+ {[%clk 0:00:02]} 48. Kh1 {[%clk 0:00:07]}  Kg8 {[%clk 0:00:03]} 49. f6 {[%clk 0:00:03]}  Kf8 {[%clk 0:00:03]} 50. f7 {[%clk 0:00:03]}  Ra1+ {[%clk 0:00:01]} 51. Kxh2 {[%clk 0:00:03]}  Ra2+ {[%clk 0:00:02]} 52. Kg3 {[%clk 0:00:04]}  Ra3+ {[%clk 0:00:03]} 53. Kf4 {[%clk 0:00:04]}  Ra1 {[%clk 0:00:03]} 54. Ke5 {[%clk 0:00:05]}  Re1+ {[%clk 0:00:03]} 55. Kd6 {[%clk 0:00:06]}  Rd1+ {[%clk 0:00:03]} 56. Kc7 {[%clk 0:00:06]}  Ra1 {[%clk 0:00:02]} 57. Kb8 {[%clk 0:00:06]} 1-0


[Site "https://www.chess.com"]

[Event "Titled Tuesday Blitz September 13 Late 2022"]
[White "Tatarinov, Dmitry"]
[Black "Bortnyk, Olexandr"]
[WhiteFideId "24160067"]
[BlackFideId "14120828"]
[WhiteElo "2324"]
[BlackElo "2723"]
[Result "0-1"]
[Round "05"]
[TimeControl "180+1"]
[Date "2022.09.13"]
[WhiteClock "0:01:02"]
[BlackClock "0:00:09"]

1. d4 {[%clk 0:02:59]}  d6 {[%clk 0:02:59]} 2. c4 {[%clk 0:02:59]}  e5 {[%clk 0:02:58]} 3. Nc3 {[%clk 0:02:59]}  exd4 {[%clk 0:02:55]} 4. Qxd4 {[%clk 0:02:59]}  Nc6 {[%clk 0:02:49]} 5. Qd2 {[%clk 0:02:58]}  g6 {[%clk 0:02:42]} 6. b3 {[%clk 0:02:58]}  Bg7 {[%clk 0:02:41]} 7. Bb2 {[%clk 0:02:59]}  Nf6 {[%clk 0:02:33]} 8. e3 {[%clk 0:02:52]}  O-O {[%clk 0:02:31]} 9. Nf3 {[%clk 0:02:52]}  Be6 {[%clk 0:02:07]} 10. Be2 {[%clk 0:02:52]}  d5 {[%clk 0:02:07]} 11. cxd5 {[%clk 0:02:51]}  Nxd5 {[%clk 0:02:07]} 12. Nxd5 {[%clk 0:02:51]}  Qxd5 {[%clk 0:02:00]} 13. Bxg7 {[%clk 0:02:46]}  Qxd2+ {[%clk 0:02:00]} 14. Kxd2 {[%clk 0:02:41]}  Kxg7 {[%clk 0:02:00]} 15. Kc3 {[%clk 0:02:41]}  Bd5 {[%clk 0:01:56]} 16. Rhd1 {[%clk 0:02:39]}  Rfd8 {[%clk 0:01:55]} 17. Rd2 {[%clk 0:02:33]}  Be6 {[%clk 0:01:22]} 18. Rad1 {[%clk 0:02:30]}  Rxd2 {[%clk 0:01:17]} 19. Rxd2 {[%clk 0:02:30]}  h6 {[%clk 0:01:13]} 20. Bb5 {[%clk 0:02:28]}  Ne7 {[%clk 0:01:12]} 21. Bc4 {[%clk 0:02:21]}  Kf6 {[%clk 0:01:08]} 22. Bxe6 {[%clk 0:02:15]}  Kxe6 {[%clk 0:01:09]} 23. Nd4+ {[%clk 0:02:15]}  Kf6 {[%clk 0:01:09]} 24. Nb5 {[%clk 0:02:12]}  a6 {[%clk 0:01:09]} 25. Nxc7 {[%clk 0:02:05]}  Rc8 {[%clk 0:01:09]} 26. Rd7 {[%clk 0:02:04]}  Rxc7+ {[%clk 0:01:10]} 27. Rxc7 {[%clk 0:02:04]}  Nd5+ {[%clk 0:01:10]} 28. Kc4 {[%clk 0:02:05]}  Nxc7 {[%clk 0:01:11]} 29. Kc5 {[%clk 0:02:06]}  Ne8 {[%clk 0:00:41]} 30. Kb6 {[%clk 0:02:00]}  Nd6 {[%clk 0:00:42]} 31. Kc7 {[%clk 0:01:58]}  Ke6 {[%clk 0:00:39]} 32. a4 {[%clk 0:01:56]}  f5 {[%clk 0:00:21]} 33. f3 {[%clk 0:01:45]}  g5 {[%clk 0:00:16]} 34. b4 {[%clk 0:01:30]}  Kd5 {[%clk 0:00:13]} 35. Kb6 {[%clk 0:01:30]}  h5 {[%clk 0:00:10]} 36. Kc7 {[%clk 0:01:17]}  b5 {[%clk 0:00:09]} 37. a5 {[%clk 0:01:14]}  Nc4 {[%clk 0:00:09]} 38. Kb7 {[%clk 0:01:13]}  Nxe3 {[%clk 0:00:09]} 39. Kxa6 {[%clk 0:01:14]}  Kc6 {[%clk 0:00:10]} 40. Ka7 {[%clk 0:01:10]}  Kc7 {[%clk 0:00:07]} 41. Ka6 {[%clk 0:01:10]}  Kc6 {[%clk 0:00:07]} 42. Ka7 {[%clk 0:01:10]}  Nd5 {[%clk 0:00:08]} 43. a6 {[%clk 0:01:04]}  Nxb4 {[%clk 0:00:08]} 44. h4 {[%clk 0:01:01]}  gxh4 {[%clk 0:00:09]} 45. f4 {[%clk 0:01:02]}  Nxa6 {[%clk 0:00:08]} 46. Kxa6 {[%clk 0:01:02]}  b4 {[%clk 0:00:09]} 0-1


[Site "https://www.chess.com"]

[Event "Titled Tuesday Blitz September 13 Late 2022"]
[White "Xiong, Jeffery"]
[Black "Atanasov, Anthony"]
[WhiteFideId "2047640"]
[BlackFideId "2623897"]
[WhiteElo "2714"]
[BlackElo "1933"]
[Result "1-0"]
[Round "05"]
[TimeControl "180+1"]
[Date "2022.09.13"]
[WhiteClock "0:00:35"]
[BlackClock "0:00:01"]

1. d4 {[%clk 0:03:00]}  Nf6 {[%clk 0:02:56]} 2. c4 {[%clk 0:03:01]}  g6 {[%clk 0:02:56]} 3. Nc3 {[%clk 0:03:01]}  d5 {[%clk 0:02:56]} 4. Nf3 {[%clk 0:02:48]}  Bg7 {[%clk 0:02:56]} 5. Bf4 {[%clk 0:02:48]}  O-O {[%clk 0:02:54]} 6. Rc1 {[%clk 0:02:48]}  dxc4 {[%clk 0:02:31]} 7. e3 {[%clk 0:02:49]}  c5 {[%clk 0:02:31]} 8. dxc5 {[%clk 0:02:39]}  Qa5 {[%clk 0:02:29]} 9. Bxc4 {[%clk 0:02:38]}  Qxc5 {[%clk 0:02:29]} 10. Qe2 {[%clk 0:02:33]}  Nc6 {[%clk 0:02:27]} 11. O-O {[%clk 0:02:33]}  Bg4 {[%clk 0:02:21]} 12. Nb5 {[%clk 0:01:51]}  Qh5 {[%clk 0:02:04]} 13. h3 {[%clk 0:01:51]}  Bxf3 {[%clk 0:01:49]} 14. Qxf3 {[%clk 0:01:52]}  a6 {[%clk 0:01:45]} 15. Nc7 {[%clk 0:01:51]}  Rac8 {[%clk 0:01:42]} 16. g4 {[%clk 0:01:51]}  Qa5 {[%clk 0:01:10]} 17. Nd5 {[%clk 0:01:51]}  Nxd5 {[%clk 0:01:07]} 18. Bxd5 {[%clk 0:01:52]}  Ne5 {[%clk 0:01:00]} 19. Qe4 {[%clk 0:01:25]}  Rxc1 {[%clk 0:01:00]} 20. Rxc1 {[%clk 0:01:26]}  Qd2 {[%clk 0:01:00]} 21. Rc7 {[%clk 0:01:23]}  Nd3 {[%clk 0:00:49]} 22. Bg3 {[%clk 0:01:23]}  e6 {[%clk 0:00:20]} 23. Bb3 {[%clk 0:01:08]}  Qe1+ {[%clk 0:00:19]} 24. Kg2 {[%clk 0:01:06]}  Qe2 {[%clk 0:00:18]} 25. Qc4 {[%clk 0:00:40]}  Ne1+ {[%clk 0:00:18]} 26. Kg1 {[%clk 0:00:40]}  Nf3+ {[%clk 0:00:17]} 27. Kg2 {[%clk 0:00:41]}  Ne1+ {[%clk 0:00:17]} 28. Kg1 {[%clk 0:00:41]}  Nf3+ {[%clk 0:00:17]} 29. Kh1 {[%clk 0:00:42]}  Qe1+ {[%clk 0:00:17]} 30. Kg2 {[%clk 0:00:42]}  Nd2 {[%clk 0:00:10]} 31. Qd3 {[%clk 0:00:42]}  Nxb3 {[%clk 0:00:04]} 32. Qxb3 {[%clk 0:00:43]}  b5 {[%clk 0:00:05]} 33. Bd6 {[%clk 0:00:33]}  Rd8 {[%clk 0:00:05]} 34. Be7 {[%clk 0:00:33]}  Rd1 {[%clk 0:00:01]} 35. Rc8+ {[%clk 0:00:31]}  Bf8 {[%clk 0:00:02]} 36. Rxf8+ {[%clk 0:00:32]}  Kg7 {[%clk 0:00:02]} 37. Qc3+ {[%clk 0:00:32]}  Qxc3 {[%clk 0:00:02]} 38. bxc3 {[%clk 0:00:33]}  Rd7 {[%clk 0:00:01]} 39. Re8 {[%clk 0:00:33]}  Rc7 {[%clk 0:00:01]} 40. Bd6 {[%clk 0:00:33]}  Rc6 {[%clk 0:00:01]} 41. Be5+ {[%clk 0:00:33]}  f6 {[%clk 0:00:01]} 42. Re7+ {[%clk 0:00:34]}  Kh6 {[%clk 0:00:02]} 43. Bxf6 {[%clk 0:00:35]}  e5 {[%clk 0:00:02]} 44. g5+ {[%clk 0:00:34]}  Kh5 {[%clk 0:00:01]} 45. Rxh7# {[%clk 0:00:35]} 1-0


[Site "https://www.chess.com"]

[Event "Titled Tuesday Blitz September 13 Late 2022"]
[White "Yurovskykh, Oleksandr"]
[Black "Wan, Joseph"]
[WhiteFideId "14134020"]
[BlackFideId "2069890"]
[WhiteElo "2303"]
[BlackElo "2198"]
[Result "0-1"]
[Round "05"]
[TimeControl "180+1"]
[Date "2022.09.13"]
[WhiteClock "0:00:13"]
[BlackClock "0:00:50"]

1. d4 {[%clk 0:01:48]}  d5 {[%clk 0:02:58]} 2. Bf4 {[%clk 0:01:45]}  c5 {[%clk 0:02:57]} 3. e3 {[%clk 0:01:45]}  Nc6 {[%clk 0:02:55]} 4. c3 {[%clk 0:01:45]}  Nf6 {[%clk 0:02:55]} 5. Nd2 {[%clk 0:01:43]}  Bf5 {[%clk 0:02:52]} 6. Ngf3 {[%clk 0:01:43]}  e6 {[%clk 0:02:52]} 7. Qb3 {[%clk 0:01:43]}  Qb6 {[%clk 0:02:41]} 8. Qxb6 {[%clk 0:01:38]}  axb6 {[%clk 0:02:40]} 9. Bb5 {[%clk 0:01:39]}  Nd7 {[%clk 0:02:41]} 10. Ne5 {[%clk 0:01:38]}  Ndxe5 {[%clk 0:02:39]} 11. Bxe5 {[%clk 0:01:39]}  Rc8 {[%clk 0:02:36]} 12. a4 {[%clk 0:01:34]}  f6 {[%clk 0:02:35]} 13. Bg3 {[%clk 0:01:33]}  h5 {[%clk 0:02:35]} 14. h3 {[%clk 0:01:32]}  h4 {[%clk 0:02:34]} 15. Bh2 {[%clk 0:01:32]}  Kf7 {[%clk 0:02:34]} 16. O-O {[%clk 0:01:22]}  Be7 {[%clk 0:02:33]} 17. Rfe1 {[%clk 0:01:22]}  cxd4 {[%clk 0:02:26]} 18. exd4 {[%clk 0:01:21]}  g5 {[%clk 0:02:26]} 19. Nf1 {[%clk 0:01:19]}  Na7 {[%clk 0:02:20]} 20. Be2 {[%clk 0:01:17]}  Nc6 {[%clk 0:02:20]} 21. Ne3 {[%clk 0:01:17]}  Bg6 {[%clk 0:02:20]} 22. Bg4 {[%clk 0:01:13]}  f5 {[%clk 0:02:13]} 23. Be2 {[%clk 0:01:13]}  Bf6 {[%clk 0:02:11]} 24. Bd3 {[%clk 0:01:12]}  Na5 {[%clk 0:02:02]} 25. Nf1 {[%clk 0:01:11]}  Nc4 {[%clk 0:01:53]} 26. Ra2 {[%clk 0:01:01]}  f4 {[%clk 0:01:46]} 27. Bxg6+ {[%clk 0:01:01]}  Kxg6 {[%clk 0:01:40]} 28. f3 {[%clk 0:01:01]}  Kf5 {[%clk 0:01:39]} 29. Kh1 {[%clk 0:00:59]}  Ra8 {[%clk 0:01:25]} 30. Bg1 {[%clk 0:00:59]}  Rhc8 {[%clk 0:01:22]} 31. Rd1 {[%clk 0:00:49]}  b5 {[%clk 0:01:15]} 32. b3 {[%clk 0:00:36]}  Nd6 {[%clk 0:01:12]} 33. Rd3 {[%clk 0:00:29]}  bxa4 {[%clk 0:01:03]} 34. bxa4 {[%clk 0:00:28]}  Rc6 {[%clk 0:00:59]} 35. Nh2 {[%clk 0:00:18]}  Rca6 {[%clk 0:00:58]} 36. Ng4 {[%clk 0:00:19]}  Bg7 {[%clk 0:00:59]} 37. Bf2 {[%clk 0:00:18]}  Rxa4 {[%clk 0:00:58]} 38. Rxa4 {[%clk 0:00:18]}  Rxa4 {[%clk 0:00:59]} 39. Rd1 {[%clk 0:00:17]}  Rc4 {[%clk 0:00:57]} 40. Be1 {[%clk 0:00:17]}  Nb5 {[%clk 0:00:57]} 41. Rb1 {[%clk 0:00:14]}  Nxc3 {[%clk 0:00:52]} 42. Bxc3 {[%clk 0:00:13]}  Rxc3 {[%clk 0:00:52]} 43. Rxb7 {[%clk 0:00:13]}  Bxd4 {[%clk 0:00:52]} 44. Rf7+ {[%clk 0:00:12]}  Kg6 {[%clk 0:00:52]} 45. Re7 {[%clk 0:00:13]}  Rc1+ {[%clk 0:00:50]} 46. Kh2 {[%clk 0:00:13]}  Bg1+ {[%clk 0:00:50]} 0-1


[Site "https://www.chess.com"]